bitfinex/quotes_BTCUSD_20230405
["timestamp","ask_amount","ask_price","bid_price","bid_amount"]
[1680729269347,0.01551029,28181.0,28180.0,0.21151212]
[1680729269560,0.06284681,28181.0,28180.0,0.29647656]
[1680729269972,0.06284681,28181.0,28180.0,0.31808359]
[1680729270180,0.06284681,28181.0,28180.0,0.44808359]
[1680729270589,0.06284681,28181.0,28180.0,0.47620359]
[1680729270796,0.06284681,28181.0,28180.0,0.47608359]
[1680729271218,0.06284681,28181.0,28180.0,0.39111915]
[1680729271417,0.06284681,28181.0,28180.0,0.74582971]
[1680729271629,0.06284681,28181.0,28180.0,1.10102971]
[1680729271855,0.06284681,28181.0,28180.0,0.74631915]
[1680729272688,0.04998628,28186.0,28181.0,0.01937447]
[1680729272896,0.00021,28184.0,28181.0,0.24624802]
[1680729273101,0.0085,28185.0,28182.0,0.024591]
[1680729273527,0.0085,28185.0,28182.0,0.0937601]
[1680729273730,0.03787051,28183.0,28182.0,0.0691691]
[1680729273936,0.04637051,28183.0,28182.0,0.0925461]
[1680729274257,0.04637051,28183.0,28182.0,0.1205461]
[1680729274464,0.04637051,28183.0,28182.0,0.0925461]
[1680729274671,0.0085,28183.0,28182.0,0.1205461]
[1680729274876,0.00021,28186.0,28182.0,0.47525666]
[1680729275081,0.00021,28186.0,28183.0,0.06524414]
[1680729275324,0.00871,28186.0,28184.0,0.023857]
[1680729275733,0.0380278,28185.0,28184.0,0.13943456]
[1680729275947,0.0465278,28185.0,28184.0,0.13943456]
[1680729276370,0.0465278,28185.0,28184.0,0.11557756]
[1680729277089,0.0465278,28185.0,28184.0,0.13157756]
[1680729277723,0.0465278,28185.0,28184.0,0.15627456]
[1680729277936,0.0465278,28185.0,28184.0,0.13157756]
[1680729278287,0.0465278,28185.0,28184.0,0.15591856]
[1680729279049,0.0465278,28185.0,28184.0,0.13157756]
[1680729279738,0.0467378,28185.0,28184.0,0.13157756]
[1680729280727,0.50263076,28185.0,28184.0,0.13157756]
[1680729280928,0.53608176,28185.0,28184.0,0.13157756]
[1680729281133,0.50263076,28185.0,28184.0,0.13157756]
[1680729287439,0.0085,28185.0,28184.0,0.13157756]
[1680729287647,0.0560422,28185.0,28184.0,0.13157756]
[1680729289994,0.0560422,28185.0,28184.0,0.39230372]
[1680729290410,0.0560422,28185.0,28184.0,0.39242372]
[1680729291079,0.0560422,28185.0,28184.0,0.39248372]
[1680729291282,0.0560422,28185.0,28184.0,0.13175756]
[1680729291486,0.0904552,28185.0,28184.0,0.13157756]
[1680729291920,0.0560422,28185.0,28184.0,0.13157756]
[1680729292760,0.0560422,28185.0,28184.0,0.13169756]
[1680729293609,0.0560422,28185.0,28184.0,0.13175756]
[1680729295280,0.0560422,28185.0,28184.0,0.11575756]
[1680729295492,0.0560422,28185.0,28184.0,0.14375756]
[1680729295916,0.37549729,28186.0,28185.0,0.0439578]
[1680729296349,0.37549729,28186.0,28185.0,0.06234832]
[1680729296557,0.41235378,28186.0,28185.0,0.06234832]
[1680729296785,0.42739805,28186.0,28185.0,0.06234832]
[1680729297477,0.42739805,28186.0,28185.0,0.09034832]
[1680729297676,0.42739805,28186.0,28185.0,0.06234832]
[1680729297860,0.42739805,28186.0,28185.0,0.07134832]
[1680729298072,0.43589805,28186.0,28185.0,0.07134832]
[1680729298558,0.87431843,28186.0,28185.0,0.07134832]
[1680729303107,0.83869743,28186.0,28185.0,0.07134832]
[1680729303742,0.83869743,28186.0,28185.0,0.06234832]
[1680729303954,0.83869743,28186.0,28185.0,0.08434832]
[1680729306269,0.83848743,28186.0,28185.0,0.08434832]
[1680729307060,0.83848743,28186.0,28185.0,0.06234832]
[1680729307462,0.83848743,28186.0,28185.0,0.08434832]
[1680729310911,0.87249343,28186.0,28185.0,0.08434832]
[1680729311146,0.83869743,28186.0,28185.0,0.08434832]
[1680729312910,0.83848743,28186.0,28185.0,0.08434832]
[1680729313565,0.80163094,28186.0,28185.0,0.08434832]
[1680729314825,0.80184094,28186.0,28185.0,0.08434832]
[1680729315455,0.83359294,28186.0,28185.0,0.08434832]
[1680729315629,0.83359294,28186.0,28185.0,0.06234832]
[1680729315836,0.83359294,28186.0,28185.0,0.07834832]
[1680729316030,0.80184094,28186.0,28185.0,0.07834832]
[1680729317055,0.83694094,28186.0,28185.0,0.07834832]
[1680729317277,0.83616194,28186.0,28185.0,0.07834832]
[1680729317869,0.80184094,28186.0,28185.0,0.07834832]
[1680729320067,0.80184094,28186.0,28185.0,0.0599578]
[1680729322348,0.83610694,28186.0,28185.0,0.05923274]
[1680729322522,0.83601694,28186.0,28185.0,0.05923274]
[1680729323314,0.80163094,28186.0,28185.0,0.05895547]
[1680729323960,0.83594494,28186.0,28185.0,0.05895547]
[1680729324367,0.80163094,28186.0,28185.0,0.05895547]
[1680729325696,0.83291123,28186.0,28185.0,0.05895547]
[1680729330473,0.83291123,28186.0,28185.0,0.08301247]
[1680729330629,0.83312123,28186.0,28185.0,0.05895547]
[1680729330824,0.83291123,28186.0,28185.0,0.05895547]
[1680729332734,0.87598905,28186.0,28185.0,0.05895547]
[1680729332940,0.87598905,28186.0,28185.0,0.08368047]
[1680729333146,0.87619905,28186.0,28185.0,0.08368047]
[1680729333577,0.87619905,28186.0,28185.0,0.05895547]
[1680729333743,0.87598905,28186.0,28185.0,0.05895547]
[1680729333948,0.87598905,28186.0,28185.0,0.08299647]
[1680729334153,0.87619905,28186.0,28185.0,0.05895547]
[1680729334356,0.87598905,28186.0,28185.0,0.05895547]
[1680729336441,0.87598905,28186.0,28185.0,0.09945799]
[1680729336666,0.87619905,28186.0,28185.0,0.09945799]
[1680729337503,0.77598905,28186.0,28185.0,0.09945799]
[1680729339188,0.77598905,28186.0,28185.0,0.12417599]
[1680729339351,0.77598905,28186.0,28185.0,0.12475099]
[1680729339556,0.77598905,28186.0,28185.0,0.09945799]
[1680729345452,0.77598905,28186.0,28185.0,0.18443473]
[1680729345651,0.77598905,28186.0,28185.0,0.18455473]
[1680729350056,0.08285811,28186.0,28185.0,0.18455473]
[1680729350281,0.04585811,28186.0,28185.0,0.55540768]
[1680729350494,0.04585811,28186.0,28185.0,0.47043094]
[1680729350706,0.07094678,28186.0,28185.0,0.47043094]
[1680729352157,0.07944678,28186.0,28185.0,0.47043094]
[1680729355312,0.07944678,28186.0,28185.0,0.2749639]
[1680729360990,0.07944678,28186.0,28185.0,0.2504509]
[1680729361193,0.04644678,28186.0,28185.0,0.2504509]
[1680729361594,0.07614678,28186.0,28185.0,0.2504509]
[1680729361950,0.07614678,28186.0,28185.0,0.2751189]
[1680729362125,0.07614678,28186.0,28185.0,0.2504509]
[1680729362359,0.07614678,28186.0,28185.0,0.12741947]
[1680729362557,0.48944607,28186.0,28185.0,0.21245145]
[1680729362771,0.48944607,28186.0,28185.0,0.08521198]
[1680729363202,0.48944607,28186.0,28185.0,0.08515198]
[1680729363406,0.48944607,28186.0,28185.0,0.08503198]
[1680729363617,0.48944607,28186.0,28185.0,0.21245145]
[1680729363844,0.48944607,28186.0,28185.0,0.21263145]
[1680729365286,0.07614678,28186.0,28185.0,0.21263145]
[1680729365526,0.07614678,28186.0,28185.0,0.15355447]
[1680729365735,0.07614678,28186.0,28185.0,0.12741947]
[1680729366560,0.07614678,28186.0,28185.0,0.22741947]
[1680729366839,0.07614678,28186.0,28185.0,0.22753947]
[1680729368533,0.00021,28187.0,28186.0,0.02385322]
[1680729368734,0.04962698,28188.0,28186.0,0.1088953]
[1680729368952,0.35471056,28188.0,28186.0,0.1088953]
[1680729369160,0.35492056,28188.0,28186.0,0.1088953]
[1680729369605,0.35492056,28188.0,28186.0,0.27453577]
[1680729369786,0.06089595,28187.0,28186.0,0.27453577]
[1680729370192,0.06089595,28187.0,28186.0,0.1088953]
[1680729370399,0.07039595,28187.0,28186.0,0.30150374]
[1680729370846,0.07039595,28187.0,28186.0,0.1168953]
[1680729371064,0.07039595,28187.0,28186.0,0.28345277]
[1680729371278,0.07033595,28187.0,28186.0,0.28357277]
[1680729372130,0.07033595,28187.0,28186.0,0.30743677]
[1680729372321,0.07033595,28187.0,28186.0,0.28357277]
[1680729372983,0.07033595,28187.0,28186.0,0.43525124]
[1680729373185,0.07033595,28187.0,28186.0,0.43513124]
[1680729373446,0.07033595,28187.0,28186.0,0.30771177]
[1680729373851,0.07033595,28187.0,28186.0,0.43513124]
[1680729374534,0.07033595,28187.0,28186.0,0.30771177]
[1680729375370,0.07033595,28187.0,28186.0,0.43513124]
[1680729377288,0.07033595,28187.0,28186.0,0.26857377]
[1680729377486,0.06183595,28187.0,28186.0,0.18353169]
[1680729377690,0.06183595,28187.0,28186.0,0.34541559]
[1680729378225,0.06183595,28187.0,28186.0,0.53328632]
[1680729378417,0.06183595,28187.0,28186.0,0.35342431]
[1680729378646,0.06183595,28187.0,28186.0,0.52890637]
[1680729378804,0.06183595,28187.0,28186.0,0.35342431]
[1680729379178,0.02387001,28189.0,28187.0,0.03816405]
[1680729379388,0.02387001,28189.0,28188.0,0.024949]
[1680729379588,0.03237001,28189.0,28188.0,0.21197432]
[1680729382035,0.03737001,28189.0,28188.0,0.21197432]
[1680729382246,0.03237001,28189.0,28188.0,0.21197432]
[1680729382488,0.04437001,28189.0,28188.0,0.21297432]
[1680729382893,0.03237001,28189.0,28188.0,0.21197432]
[1680729383223,0.04637001,28189.0,28188.0,0.21397432]
[1680729383434,0.01670596,28189.0,28188.0,0.026949]
[1680729384578,0.04191684,28192.0,28189.0,0.16304604]
[1680729385584,0.04191684,28192.0,28189.0,0.16504604]
[1680729387000,0.0085,28191.0,28189.0,0.16504604]
[1680729387414,0.0085,28191.0,28190.0,0.11947639]
[1680729388058,0.0095,28191.0,28190.0,0.11947639]
[1680729388276,0.001,28191.0,28190.0,0.11947639]
[1680729388498,0.0085,28191.0,28190.0,0.11947639]
[1680729388703,0.0095,28191.0,28190.0,0.12147639]
[1680729389117,0.001,28191.0,28190.0,0.12147639]
[1680729389853,0.44006921,28195.0,28190.0,0.12147639]
[1680729390062,0.35471056,28194.0,28190.0,0.2633732]
[1680729390266,0.71296155,28194.0,28191.0,0.23814979]
[1680729390451,0.03406,28193.0,28191.0,0.23832979]
[1680729390605,0.03406,28193.0,28191.0,0.23826979]
[1680729392016,0.0085,28192.0,28191.0,0.23826979]
[1680729392228,0.0085,28192.0,28191.0,0.23832979]
[1680729392425,0.0085,28193.0,28191.0,0.23826979]
[1680729393058,0.0085,28193.0,28191.0,0.34026979]
[1680729393299,0.0085,28193.0,28191.0,0.33832979]
[1680729393694,0.0085,28193.0,28191.0,0.34032979]
[1680729394324,0.0085,28193.0,28191.0,0.34026979]
[1680729394533,0.0085,28193.0,28191.0,0.15737614]
[1680729394735,0.033508,28192.0,28191.0,0.102]
[1680729394945,0.042008,28192.0,28191.0,0.102]
[1680729395181,0.0085,28192.0,28191.0,0.102]
[1680729395775,0.0085,28192.0,28191.0,0.1]
[1680729396002,0.041313,28192.0,28191.0,0.102]
[1680729396413,0.041313,28192.0,28191.0,0.14250253]
[1680729397384,0.043981,28192.0,28191.0,0.14250253]
[1680729400538,0.47890057,28192.0,28191.0,0.14250253]
[1680729400746,0.54811986,28192.0,28191.0,0.14250253]
[1680729402144,0.11320029,28192.0,28191.0,0.14250253]
[1680729402337,0.07750929,28192.0,28191.0,0.22956456]
[1680729404747,0.07750929,28192.0,28191.0,0.22756456]
[1680729404898,0.07750929,28192.0,28191.0,0.22856456]
[1680729405115,0.07750929,28192.0,28191.0,0.22603956]
[1680729405465,0.35492056,28194.0,28192.0,0.13027795]
[1680729405648,0.35492056,28194.0,28193.0,0.07022396]
[1680729405908,0.38942556,28194.0,28192.0,0.02249071]
[1680729406116,0.35492056,28194.0,28192.0,0.02249071]
[1680729406337,0.35492056,28194.0,28192.0,0.02349071]
[1680729406550,0.35492056,28194.0,28192.0,0.02249071]
[1680729406848,0.35492056,28194.0,28192.0,0.06299324]
[1680729407351,0.35492056,28194.0,28192.0,0.14627923]
[1680729407563,0.35492056,28194.0,28192.0,0.14727923]
[1680729407564,0.0085,28193.0,28192.0,0.14727923]
[1680729408181,0.0085,28193.0,28192.0,0.14627923]
[1680729408614,0.0085,28193.0,28192.0,0.14727923]
[1680729409980,0.043293,28193.0,28192.0,0.14727923]
[1680729410195,0.0085,28193.0,28192.0,0.14727923]
[1680729413163,0.041741,28193.0,28192.0,0.14727923]
[1680729413367,0.041741,28193.0,28192.0,0.06399324]
[1680729413584,0.06885157,28193.0,28192.0,0.06399324]
[1680729417259,0.43004281,28193.0,28192.0,0.06399324]
[1680729417466,0.81906037,28193.0,28192.0,0.06399324]
[1680729417666,0.81885037,28193.0,28192.0,0.06399324]
[1680729417966,0.78885037,28193.0,28192.0,0.06399324]
[1680729418542,0.80001286,28193.0,28192.0,0.06399324]
[1680729419969,0.79915686,28193.0,28192.0,0.06399324]
[1680729420212,0.80765686,28193.0,28192.0,0.06399324]
[1680729420398,0.77441586,28193.0,28192.0,0.06399324]
[1680729421028,0.80825286,28193.0,28192.0,0.06399324]
[1680729421431,0.80744986,28193.0,28192.0,0.06399324]
[1680729421943,0.77441586,28193.0,28192.0,0.06399324]
[1680729422442,0.80834086,28193.0,28192.0,0.06399324]
[1680729422651,0.77441586,28193.0,28192.0,0.06399324]
[1680729423166,0.80990886,28193.0,28192.0,0.06399324]
[1680729423838,0.77441586,28193.0,28192.0,0.06399324]
[1680729424275,0.80770286,28193.0,28192.0,0.06399324]
[1680729424979,0.80770286,28193.0,28192.0,0.04150253]
[1680729425834,0.05001406,28193.0,28192.0,0.12074328]
[1680729426049,0.05001406,28193.0,28192.0,0.20565036]
[1680729426271,0.05001406,28193.0,28192.0,0.35905211]
[1680729426458,0.04948864,28196.0,28192.0,0.59196671]
[1680729426712,0.02408001,28197.0,28194.0,0.08500656]
[1680729426713,0.35772846,28197.0,28194.0,0.08500656]
[1680729426895,0.02387001,28197.0,28194.0,0.22690337]
[1680729427126,0.02387001,28197.0,28195.0,0.023532]
[1680729427334,0.02387001,28197.0,28193.0,0.34380456]
[1680729427544,0.02387001,28197.0,28194.0,0.017156]
[1680729427765,0.0085,28196.0,28194.0,0.017156]
[1680729428629,0.02387001,28197.0,28194.0,0.017156]
[1680729428844,0.02387001,28197.0,28191.0,0.35630225]
[1680729429055,0.47014955,28197.0,28192.0,0.02693964]
[1680729429266,0.001,28196.0,28194.0,0.001]
[1680729429468,0.47014955,28197.0,28192.0,0.02693964]
[1680729429671,0.03005405,28196.0,28192.0,0.02693964]
[1680729429875,0.03026405,28196.0,28193.0,0.01227]
[1680729430089,0.03026405,28196.0,28192.0,0.02693964]
[1680729430293,0.03026405,28196.0,28194.0,0.009]
[1680729430515,0.03026405,28196.0,28192.0,0.02693964]
[1680729430718,0.00021,28196.0,28193.0,0.012379]
[1680729430922,0.47014955,28197.0,28193.0,0.012379]
[1680729431129,0.47014955,28197.0,28192.0,0.02693964]
[1680729431546,0.47014955,28197.0,28193.0,0.016]
[1680729431756,0.47014955,28197.0,28194.0,0.0221586]
[1680729431757,0.03005405,28196.0,28194.0,0.0221586]
[1680729431932,0.03026405,28196.0,28194.0,0.0221586]
[1680729432487,0.00021,28196.0,28194.0,0.0221586]
[1680729432751,0.0085,28196.0,28194.0,0.0221586]
[1680729433487,0.45594884,28197.0,28194.0,0.0251586]
[1680729433799,0.03003671,28195.0,28194.0,0.0251586]
[1680729434005,0.03003671,28195.0,28194.0,0.0374886]
[1680729434209,0.03003671,28195.0,28194.0,0.0251586]
[1680729434420,0.03003671,28195.0,28194.0,0.0374306]
[1680729434626,0.0098793,28197.0,28194.0,0.0344306]
[1680729434843,0.0098793,28197.0,28194.0,0.0251586]
[1680729435526,0.0085,28196.0,28194.0,0.0221586]
[1680729435741,0.03873514,28196.0,28194.0,0.0221586]
[1680729435951,0.03873514,28196.0,28194.0,0.0251586]
[1680729436128,0.03873514,28196.0,28194.0,0.0221586]
[1680729436354,0.03873514,28196.0,28194.0,0.0251586]
[1680729436510,0.0085,28196.0,28194.0,0.0251586]
[1680729436729,0.0098793,28197.0,28194.0,0.0251586]
[1680729436954,0.0085,28196.0,28195.0,0.03021125]
[1680729437113,0.0085,28196.0,28195.0,0.04230925]
[1680729437519,0.03873855,28196.0,28195.0,0.04230925]
[1680729437760,0.03973855,28196.0,28195.0,0.04230925]
[1680729437955,0.03973855,28196.0,28195.0,0.03021125]
[1680729438161,0.03873855,28196.0,28195.0,0.03021125]
[1680729438360,0.03873855,28196.0,28195.0,0.03321125]
[1680729440457,0.03873855,28196.0,28195.0,0.04564525]
[1680729442355,0.03023855,28196.0,28195.0,0.04564525]
[1680729443614,0.03023855,28196.0,28195.0,0.04576525]
[1680729443842,0.03023855,28196.0,28195.0,0.04582525]
[1680729447254,0.03023855,28196.0,28195.0,0.04551212]
[1680729447967,0.03023855,28196.0,28195.0,0.03307812]
[1680729450792,0.03023855,28196.0,28195.0,0.04567012]
[1680729453974,0.03023855,28196.0,28195.0,0.03307812]
[1680729454197,0.03023855,28196.0,28195.0,0.04507512]
[1680729456351,0.03023855,28196.0,28195.0,0.08557764]
[1680729456589,0.03023855,28196.0,28195.0,0.08660864]
[1680729461637,0.0098793,28197.0,28195.0,0.08660864]
[1680729461842,0.0098793,28197.0,28196.0,0.012097]
[1680729462434,0.0098793,28197.0,28196.0,0.02537225]
[1680729462632,0.03981684,28197.0,28196.0,0.02537225]
[1680729463009,0.04081684,28197.0,28196.0,0.04679225]
[1680729464787,0.03981684,28197.0,28196.0,0.04679225]
[1680729465569,0.03981684,28197.0,28196.0,0.03769525]
[1680729465744,0.03981684,28197.0,28196.0,0.04972025]
[1680729466914,0.03981684,28197.0,28196.0,0.03769525]
[1680729467342,0.04831684,28197.0,28196.0,0.03769525]
[1680729471708,0.04831684,28197.0,28196.0,0.10113581]
[1680729477566,0.4032374,28197.0,28196.0,0.14357347]
[1680729477777,0.4509304,28197.0,28196.0,0.01627525]
[1680729477996,0.87639428,28197.0,28196.0,0.003]
[1680729478223,0.4509304,28197.0,28196.0,0.003]
[1680729478864,0.4509304,28197.0,28196.0,0.04050252]
[1680729479077,0.52220236,28197.0,28196.0,0.04350252]
[1680729479315,0.52220236,28197.0,28196.0,0.04050252]
[1680729479534,0.52220236,28197.0,28196.0,0.04250252]
[1680729479535,0.52320236,28197.0,28196.0,0.04250252]
[1680729479764,0.49226482,28197.0,28196.0,0.04050252]
[1680729479970,0.49326482,28197.0,28196.0,0.04250252]
[1680729480674,0.82387206,28197.0,28196.0,0.04250252]
[1680729481116,0.77577548,28197.0,28196.0,0.04250252]
[1680729486413,0.77477548,28197.0,28196.0,0.04050252]
[1680729486610,0.77577548,28197.0,28196.0,0.04250252]
[1680729493065,0.37429986,28197.0,28196.0,0.06726769]
[1680729494055,0.37429986,28197.0,28196.0,0.04250252]
[1680729494254,0.37329986,28197.0,28196.0,0.04050252]
[1680729494462,0.37429986,28197.0,28196.0,0.04250252]
[1680729496455,0.37329986,28197.0,28196.0,0.04050252]
[1680729496830,0.37429986,28197.0,28196.0,0.04250252]
[1680729499768,0.37429986,28197.0,28196.0,0.002]
[1680729502568,0.42187086,28197.0,28196.0,0.002]
[1680729503047,0.37429986,28197.0,28196.0,0.002]
[1680729503822,0.41825586,28197.0,28196.0,0.002]
[1680729505286,0.37429986,28197.0,28196.0,0.002]
[1680729505490,0.42116586,28197.0,28196.0,0.002]
[1680729505715,0.42124186,28197.0,28196.0,0.002]
[1680729505923,0.42067186,28197.0,28196.0,0.002]
[1680729506084,0.42067286,28197.0,28196.0,0.002]
[1680729506683,0.41967286,28197.0,28194.0,0.02454866]
[1680729507012,0.36321056,28196.0,28194.0,0.02454866]
[1680729507208,0.36342056,28196.0,28194.0,0.02454866]
[1680729507658,0.043693,28195.0,28194.0,0.06505118]
[1680729507810,0.052403,28195.0,28194.0,0.06505118]
[1680729508016,0.055274,28195.0,28194.0,0.06505118]
[1680729508222,0.00871,28195.0,28194.0,0.06505118]
[1680729508822,0.00971,28195.0,28194.0,0.06505118]
[1680729510031,0.0095,28195.0,28194.0,0.06505118]
[1680729512812,0.00956,28195.0,28194.0,0.06505118]
[1680729513018,0.00971,28195.0,28194.0,0.06505118]
[1680729515212,0.00121,28195.0,28194.0,0.06505118]
[1680729516177,0.001,28195.0,28194.0,0.06505118]
[1680729516386,0.00121,28195.0,28194.0,0.06505118]
[1680729517441,0.00021,28195.0,28194.0,0.06505118]
[1680729517674,0.00121,28195.0,28194.0,0.06605118]
[1680729518849,0.001,28195.0,28194.0,0.06605118]
[1680729519670,0.181,28195.0,28194.0,0.06605118]
[1680729519905,0.18121,28195.0,28194.0,0.16461495]
[1680729520242,0.18121,28195.0,28194.0,0.29191317]
[1680729520443,0.18121,28195.0,28194.0,0.16461495]
[1680729520646,0.18121,28195.0,28194.0,0.29191317]
[1680729520881,0.18021,28195.0,28194.0,0.16361495]
[1680729521081,0.00121,28195.0,28194.0,0.16361495]
[1680729521258,0.001,28195.0,28194.0,0.29091317]
[1680729521462,0.0100893,28197.0,28194.0,0.29091317]
[1680729521463,0.0085,28196.0,28194.0,0.29091317]
[1680729521704,0.0085,28196.0,28195.0,0.012071]
[1680729522120,0.0085,28196.0,28195.0,0.0253479]
[1680729522246,0.0085,28196.0,28195.0,0.0132769]
[1680729522466,0.0085,28196.0,28195.0,0.111295]
[1680729522694,0.0085,28196.0,28195.0,0.0263109]
[1680729522905,0.0085,28196.0,28195.0,0.111295]
[1680729523091,0.0085,28196.0,28195.0,0.05622461]
[1680729523295,0.0095,28196.0,28195.0,0.14220871]
[1680729525346,0.0095,28196.0,28195.0,0.05722461]
[1680729525549,0.0095,28196.0,28195.0,0.14220871]
[1680729526427,0.0085,28196.0,28195.0,0.14120871]
[1680729526843,0.0085,28196.0,28195.0,0.05722461]
[1680729526844,0.0095,28196.0,28195.0,0.05722461]
[1680729527672,0.0095,28196.0,28195.0,0.14220871]
[1680729527873,0.0095,28196.0,28195.0,0.05722461]
[1680729528274,0.0095,28196.0,28195.0,0.14220871]
[1680729528672,0.0095,28196.0,28195.0,0.05722461]
[1680729529077,0.0095,28196.0,28195.0,0.14220871]
[1680729529333,0.0095,28196.0,28195.0,0.05722461]
[1680729529668,0.0095,28196.0,28195.0,0.14220871]
[1680729531002,0.0095,28196.0,28195.0,0.05722461]
[1680729531675,0.0095,28196.0,28195.0,0.04419061]
[1680729531839,0.0095,28196.0,28195.0,0.05635161]
[1680729532041,0.0095,28196.0,28195.0,0.14133571]
[1680729532707,0.0095,28196.0,28195.0,0.12917471]
[1680729532925,0.0095,28196.0,28195.0,0.14157471]
[1680729535513,0.0085,28196.0,28195.0,0.14057471]
[1680729535669,0.0095,28196.0,28195.0,0.14157471]
[1680729538789,0.0095,28196.0,28195.0,0.26887293]
[1680729539450,0.0095,28196.0,28195.0,0.14157471]
[1680729540092,0.0095,28196.0,28195.0,0.12917471]
[1680729541138,0.0085,28196.0,28195.0,0.12817471]
[1680729541678,0.0085,28196.0,28195.0,0.14332771]
[1680729542016,0.0085,28196.0,28195.0,0.13117471]
[1680729543677,0.0085,28196.0,28195.0,0.14417371]
[1680729544915,0.0085,28196.0,28195.0,0.12817471]
[1680729545228,0.0085,28196.0,28195.0,0.14365571]
[1680729545340,0.0085,28196.0,28195.0,0.14065571]
[1680729545562,0.0085,28196.0,28195.0,0.14365571]
[1680729547489,0.0085,28196.0,28195.0,0.27095393]
[1680729547720,0.03377775,28196.0,28195.0,0.27095393]
[1680729547945,0.03377775,28196.0,28195.0,0.27092424]
[1680729548296,0.03377775,28196.0,28195.0,0.18596983]
[1680729548697,0.0085,28196.0,28195.0,0.18596983]
[1680729550356,0.0085,28196.0,28195.0,0.13114767]
[1680729550662,0.0085,28196.0,28195.0,0.25844589]
[1680729552825,0.0085,28196.0,28195.0,0.12814767]
[1680729553061,0.0095,28196.0,28195.0,0.12814767]
[1680729553269,0.0095,28196.0,28195.0,0.25544589]
[1680729553478,0.0095,28196.0,28195.0,0.26754789]
[1680729553688,0.0095,28196.0,28195.0,0.25544589]
[1680729553904,0.0095,28196.0,28195.0,0.17048883]
[1680729554294,0.0095,28196.0,28195.0,0.08809175]
[1680729554495,0.0095,28196.0,28195.0,0.12582151]
[1680729554697,0.0095,28196.0,28195.0,0.04085285]
[1680729554911,0.0098793,28197.0,28195.0,0.04085285]
[1680729555115,0.0098793,28197.0,28196.0,0.09722468]
[1680729555460,0.0098793,28197.0,28196.0,0.1227001]
[1680729556242,0.0098793,28197.0,28196.0,0.1237001]
[1680729556243,0.0193793,28197.0,28196.0,0.1237001]
[1680729556440,0.0183793,28197.0,28196.0,0.1227001]
[1680729556639,0.0193793,28197.0,28196.0,0.1237001]
[1680729564894,0.0193793,28197.0,28196.0,0.12682319]
[1680729565846,0.0193793,28197.0,28196.0,0.12689119]
[1680729566218,0.0193793,28197.0,28196.0,0.12689159]
[1680729566420,0.0193793,28197.0,28196.0,0.04185151]
[1680729569462,0.43081451,28197.0,28196.0,0.12689568]
[1680729569708,0.47747751,28197.0,28196.0,0.12377259]
[1680729570594,0.83218807,28197.0,28196.0,0.12377259]
[1680729571502,0.83218807,28197.0,28196.0,0.03872842]
[1680729573179,0.83118807,28197.0,28196.0,0.03772842]
[1680729573414,0.84518807,28197.0,28196.0,0.03772842]
[1680729573836,0.83118807,28197.0,28196.0,0.03772842]
[1680729574160,0.85818807,28197.0,28196.0,0.03772842]
[1680729574922,0.85818807,28197.0,28193.0,0.08816726]
[1680729575130,0.41023956,28196.0,28193.0,0.08816726]
[1680729575309,0.36342056,28196.0,28193.0,0.08816726]
[1680729575757,0.36342056,28196.0,28193.0,0.10192752]
[1680729575928,0.048894,28195.0,28193.0,0.10192752]
[1680729576130,0.0085,28194.0,28193.0,0.09980443]
[1680729576362,0.37842056,28196.0,28193.0,0.10292752]
[1680729576823,0.04591,28195.0,28193.0,0.10292752]
[1680729577017,0.0085,28194.0,28193.0,0.10292752]
[1680729577220,0.37842056,28196.0,28193.0,0.10292752]
[1680729577449,0.048334,28195.0,28193.0,0.10292752]
[1680729577646,0.0085,28194.0,28193.0,0.10292752]
[1680729577850,0.00021,28195.0,28193.0,0.10192752]
[1680729578104,0.01521,28195.0,28193.0,0.10292752]
[1680729578270,0.00021,28195.0,28193.0,0.10192752]
[1680729578478,0.0235,28194.0,28193.0,0.10292752]
[1680729578733,0.015,28194.0,28193.0,0.10292752]
[1680729579052,0.0085,28194.0,28193.0,0.09980443]
[1680729579391,0.0085,28194.0,28193.0,0.09880443]
[1680729579589,0.015,28194.0,28193.0,0.09980443]
[1680729579858,0.0085,28194.0,28193.0,0.09880443]
[1680729580239,0.00871,28195.0,28193.0,0.09880443]
[1680729580971,0.015,28194.0,28193.0,0.09980443]
[1680729581127,0.015,28194.0,28193.0,0.09880443]
[1680729581128,0.0085,28194.0,28193.0,0.09880443]
[1680729581326,0.0085,28194.0,28193.0,0.09980443]
[1680729581560,0.0085,28194.0,28193.0,0.09880443]
[1680729581760,0.00871,28195.0,28193.0,0.09880443]
[1680729581971,0.015,28194.0,28193.0,0.01788335]
[1680729582121,0.00021,28195.0,28193.0,0.01788335]
[1680729582122,0.0098793,28197.0,28193.0,0.23850295]
[1680729582494,0.7106533,28197.0,28195.0,0.21240823]
[1680729582711,0.7106533,28197.0,28195.0,0.08496329]
[1680729582712,0.7108633,28197.0,28195.0,0.08496329]
[1680729582912,0.7108633,28197.0,28195.0,0.09872257]
[1680729583321,0.36479986,28197.0,28195.0,0.22616751]
[1680729583520,0.0085,28196.0,28195.0,0.22616751]
[1680729584171,0.0085,28196.0,28195.0,0.22616755]
[1680729584381,0.0255,28196.0,28195.0,0.14320422]
[1680729584582,0.0255,28196.0,28195.0,0.22816741]
[1680729584793,0.0085,28196.0,28195.0,0.22616599]
[1680729584990,0.0085,28196.0,28195.0,0.14620422]
[1680729585189,0.0085,28196.0,28195.0,0.14120422]
[1680729585389,0.0255,28196.0,28195.0,0.22816602]
[1680729585620,0.0255,28196.0,28195.0,0.14320422]
[1680729585827,0.0085,28196.0,28195.0,0.14120422]
[1680729586607,0.0085,28196.0,28195.0,0.15392122]
[1680729586811,0.0085,28196.0,28195.0,0.15300522]
[1680729587012,0.0085,28196.0,28195.0,0.14620422]
[1680729587607,0.0255,28196.0,28195.0,0.16019922]
[1680729587841,0.0085,28196.0,28195.0,0.14120422]
[1680729587991,0.0085,28196.0,28195.0,0.15858522]
[1680729588195,0.0085,28196.0,28195.0,0.15358522]
[1680729588618,0.0255,28196.0,28195.0,0.15558522]
[1680729589005,0.0255,28196.0,28195.0,0.14320422]
[1680729589738,0.0085,28196.0,28195.0,0.14120422]
[1680729589968,0.0085,28196.0,28195.0,0.14620422]
[1680729590157,0.0085,28196.0,28195.0,0.15331222]
[1680729590383,0.0085,28196.0,28195.0,0.23827395]
[1680729590671,0.0085,28196.0,28195.0,0.22616662]
[1680729590989,0.0105,28196.0,28195.0,0.22616677]
[1680729591191,0.0085,28196.0,28195.0,0.22616677]
[1680729591403,0.0255,28196.0,28195.0,0.22816677]
[1680729591607,0.0085,28196.0,28195.0,0.09872183]
[1680729591816,0.0085,28196.0,28195.0,0.22616677]
[1680729592029,0.0085,28196.0,28195.0,0.09872183]
[1680729592653,0.0105,28196.0,28195.0,0.09872183]
[1680729592853,0.0085,28196.0,28195.0,0.09872183]
[1680729593063,0.0255,28196.0,28195.0,0.10072183]